fUSD/lending_fUSD_20260606
["ID","MTS","AMOUNT","RATE_DAILY","PERIOD"]
[424238010,1780680644000,-828.0,0.00021716,2]
[424238008,1780680644000,-437.4,0.00021632,2]
[424238016,1780680644000,-472.87256915,0.000219,2]
[424238011,1780680644000,-900.0,0.00021818,2]
[424238006,1780680644000,-360.414396,0.000215,2]
[424237996,1780680644000,-3001.961721,0.000215,2]
[424237997,1780680644000,-3001.961721,0.000215,2]
[424238005,1780680644000,-360.414396,0.000215,2]
[424237993,1780680644000,-151.0,0.000215,2]
[424238017,1780680644000,-2102.33439099,0.00021918,2]
[424238088,1780680645000,-1103.5443687,0.0002254,5]
[424238090,1780680645000,-1040.52822856,0.0002254,5]
[424238082,1780680645000,-1079.77792443,0.0002254,5]
[424238084,1780680645000,-1106.07675577,0.0002254,5]
[424238083,1780680645000,-1035.3237896,0.0002254,5]
[424238079,1780680645000,-1040.02030724,0.0002254,5]
[424238080,1780680645000,-1067.38617101,0.0002254,5]
[424238075,1780680645000,-1023.02665622,0.0002254,5]
[424238074,1780680645000,-1021.55881381,0.0002254,5]
[424238076,1780680645000,-1083.5204606,0.0002254,5]
[424238081,1780680645000,-1040.41320004,0.0002254,5]
[424238086,1780680645000,-1038.08004956,0.0002254,5]
[424238099,1780680645000,-292.0,0.00022896,2]
[424238087,1780680645000,-1139.46357246,0.0002254,5]
[424238089,1780680645000,-1061.0826248,0.0002254,5]
[424238091,1780680645000,-1728.55978106,0.0002254,5]
[424238092,1780680645000,-150.0,0.0002254,2]
[424238093,1780680645000,-3666.98518134,0.000226,2]
[424238094,1780680645000,-168.28,0.00022603,2]
[424238095,1780680645000,-532.28220646,0.0002271,2]
[424238101,1780680645000,-200.0,0.00022937,2]
[424238096,1780680645000,-1224.41,0.000228,7]
[424238098,1780680645000,-150.0,0.00022891,21]
[424238100,1780680645000,-151.0,0.00022937,2]
[424238102,1780680645000,-2586.85809042,0.00022937,2]
[424238077,1780680645000,-1048.29214178,0.0002254,5]
[424238085,1780680645000,-1087.88684511,0.0002254,5]
[424238078,1780680645000,-1127.90423729,0.0002254,5]
[424238061,1780680645000,-1349.64,0.00022466,2]
[424238072,1780680645000,-1030.69225705,0.0002254,5]
[424238097,1780680645000,-166.66,0.00022823,2]
[424238047,1780680645000,-3323.0,0.00022,2]
[424238045,1780680645000,-1352.0,0.00022,2]
[424238046,1780680645000,-692.0,0.00022,2]
[424238049,1780680645000,-500.0,0.0002211,2]
[424238051,1780680645000,-166.66,0.00022138,2]
[424238048,1780680645000,-9552.0,0.00022077,2]
[424238052,1780680645000,-308.24,0.000222,2]
[424238053,1780680645000,-4636.4,0.00022353,2]
[424238055,1780680645000,-200.0,0.00022389,2]
[424238054,1780680645000,-151.0,0.00022389,2]
[424238066,1780680645000,-500.0,0.00022536,2]
[424238073,1780680645000,-1079.78094991,0.0002254,5]
[424238065,1780680645000,-500.0,0.00022536,2]
[424238056,1780680645000,-2494.55939288,0.00022389,2]
[424238059,1780680645000,-628.0,0.00022424,4]
[424238058,1780680645000,-771.00218698,0.00022407,2]
[424238060,1780680645000,-748.95,0.00022466,2]
[424238063,1780680645000,-1548.0,0.00022496,2]
[424238064,1780680645000,-36103.46064728,0.000225,2]
[424238062,1780680645000,-838.45,0.00022466,2]
[424238067,1780680645000,-828.0,0.00022538,2]
[424238069,1780680645000,-1053.71715921,0.0002254,5]
[424238068,1780680645000,-1089.47626707,0.0002254,5]
[424238070,1780680645000,-1058.30783636,0.0002254,5]
[424238071,1780680645000,-1149.09255019,0.0002254,5]
[424238057,1780680645000,-771.00218699,0.00022407,2]
[424238103,1780680645000,-828.0,0.00022948,2]
[424238050,1780680645000,-244.2914288,0.0002211,2]
[424238107,1780680645000,-861.0,0.00023,2]
[424238132,1780680645000,-4091.0,0.00023,2]
[424238133,1780680645000,-500.0,0.00023,3]
[424238134,1780680645000,-3323.0,0.00023,2]
[424238142,1780680645000,-600.0,0.00023021,2]
[424238144,1780680645000,-600.0,0.00023021,2]
[424238143,1780680645000,-600.0,0.00023021,2]
[424238145,1780680645000,-260.0,0.00023021,2]
[424238146,1780680645000,-628.0,0.0002303,4]
[424238148,1780680645000,-1000.0,0.000231,2]
[424238149,1780680645000,-321.16017515,0.000232,2]
[424238150,1780680645000,-200.0,0.0002323,2]
[424238152,1780680645000,-186.18115721,0.0002325,2]
[424238151,1780680645000,-200.0,0.0002323,2]
[424238154,1780680645000,-219.34,0.00023296,2]
[424238153,1780680645000,-150.0,0.00023288,2]
[424238155,1780680645000,-2000.0,0.00023333,7]
[424238157,1780680645000,-150.0,0.00023362,2]
[424238161,1780680645000,-200.0,0.00023462,2]
[424238156,1780680645000,-828.0,0.00023359,2]
[424238164,1780680645000,-200.0,0.00023485,2]
[424238162,1780680645000,-200.0,0.00023462,2]
[424238158,1780680645000,-150.0,0.00023362,2]
[424238160,1780680645000,-294.0,0.00023362,2]
[424238165,1780680645000,-2682.57183977,0.00023485,2]
[424238159,1780680645000,-150.0,0.00023362,2]
[424238163,1780680645000,-151.0,0.00023485,2]
[424238105,1780680645000,-252.0,0.00023,2]
[424238131,1780680645000,-215.77576141,0.00023,3]
[424238138,1780680645000,-2000.0,0.00023021,2]
[424238147,1780680645000,-6417.29,0.000231,14]
[424238140,1780680645000,-600.0,0.00023021,2]
[424238112,1780680645000,-1144.0,0.00023,2]
[424238141,1780680645000,-600.0,0.00023021,2]
[424238108,1780680645000,-1000.0,0.00023,20]
[424238110,1780680645000,-612.0,0.00023,2]
[424238104,1780680645000,-418.0,0.00023,2]
[424238106,1780680645000,-1649.0,0.00023,2]
[424238111,1780680645000,-3469.0,0.00023,2]
[424238114,1780680645000,-584.0,0.00023,2]
[424238116,1780680645000,-500.0,0.00023,3]
[424238115,1780680645000,-5912.43679,0.00023,2]
[424238118,1780680645000,-2258.87,0.00023,2]
[424238119,1780680645000,-2387.45287081,0.00023,2]
[424238124,1780680645000,-200.0,0.00023,2]
[424238121,1780680645000,-500.0,0.00023,3]
[424238113,1780680645000,-2416.0,0.00023,2]
[424238130,1780680645000,-692.0,0.00023,2]
[424238125,1780680645000,-500.0,0.00023,3]
[424238137,1780680645000,-2000.0,0.00023021,2]
[424238136,1780680645000,-500.0,0.00023,3]
[424238135,1780680645000,-200.0,0.00023,2]
[424238126,1780680645000,-955.0,0.00023,2]
[424238129,1780680645000,-500.0,0.00023,3]
[424238128,1780680645000,-1352.0,0.00023,2]
[424238127,1780680645000,-500.0,0.00023,3]
[424238123,1780680645000,-500.0,0.00023,3]
[424238120,1780680645000,-16998.06,0.00023,2]
[424238122,1780680645000,-500.0,0.00023,3]
[424238139,1780680645000,-1174.0,0.00023021,2]
[424238203,1780680646000,-861.0,0.00024,2]
[424238208,1780680646000,-584.0,0.00024,2]
[424238214,1780680646000,-955.0,0.00024,2]
[424238215,1780680646000,-1352.0,0.00024,2]
[424238205,1780680646000,-3469.0,0.00024,2]
[424238196,1780680646000,-200.0,0.00023878,2]
[424238204,1780680646000,-612.0,0.00024,2]
[424238197,1780680646000,-159.0,0.00023878,2]
[424238200,1780680646000,-418.0,0.00024,2]
[424238198,1780680646000,-200.0,0.00023934,2]
[424238207,1780680646000,-2416.0,0.00024,2]
[424238206,1780680646000,-1144.0,0.00024,2]
[424238213,1780680646000,-500.0,0.00024,2]
[424238221,1780680646000,-1023.63214271,0.0002418,10]
[424238209,1780680646000,-5912.43679,0.00024,2]
[424238211,1780680646000,-3600.0,0.00024,2]
[424238212,1780680646000,-1257.5843238,0.00024,2]
[424238216,1780680646000,-692.0,0.00024,2]
[424238217,1780680646000,-3323.0,0.00024,2]
[424238226,1780680646000,-1850.0,0.00024285,2]
[424238219,1780680646000,-200.0,0.00024033,2]
[424238224,1780680646000,-3763.71119265,0.0002421,2]
[424238220,1780680646000,-2781.82699784,0.00024033,2]
[424238227,1780680646000,-1850.0,0.00024285,2]
[424238222,1780680646000,-828.0,0.00024181,2]
[424238223,1780680646000,-166.66,0.00024194,2]
[424238199,1780680646000,-200.0,0.00023934,2]
[424238210,1780680646000,-1040.04083179,0.00024,2]
[424238191,1780680646000,-200.0,0.00023878,2]
[424238167,1780680646000,-166.66,0.00023509,2]
[424238193,1780680646000,-200.0,0.00023878,2]
[424238166,1780680646000,-1174.09564159,0.000235,2]
[424238218,1780680646000,-151.0,0.00024033,2]
[424238169,1780680646000,-500.0,0.00023586,14]
[424238168,1780680646000,-1138.29,0.00023516,2]
[424238176,1780680646000,-185.576005,0.00023702,2]
[424238171,1780680646000,-150.0,0.00023667,2]
[424238172,1780680646000,-200.0,0.00023697,2]
[424238174,1780680646000,-185.576005,0.00023702,2]
[424238170,1780680646000,-628.0,0.00023636,5]
[424238175,1780680646000,-185.576005,0.00023702,2]
[424238178,1780680646000,-1200.0,0.00023702,2]
[424238189,1780680646000,-220.0,0.00023878,2]
[424238188,1780680646000,-828.0,0.0002377,2]
[424238194,1780680646000,-200.0,0.00023878,2]
[424238180,1780680646000,-1200.0,0.00023702,2]
[424238179,1780680646000,-1200.0,0.00023702,2]
[424238185,1780680646000,-1200.0,0.00023702,2]
[424238186,1780680646000,-1200.0,0.00023702,2]
[424238187,1780680646000,-824.0,0.00023702,2]
[424238177,1780680646000,-185.576005,0.00023702,2]
[424238181,1780680646000,-1200.0,0.00023702,2]
[424238184,1780680646000,-1200.0,0.00023702,2]
[424238182,1780680646000,-1200.0,0.00023702,2]
[424238190,1780680646000,-200.0,0.00023878,2]
[424238202,1780680646000,-1649.0,0.00024,2]
[424238192,1780680646000,-200.0,0.00023878,2]
[424238201,1780680646000,-252.0,0.00024,2]
[424238195,1780680646000,-200.0,0.00023878,2]
[424238183,1780680646000,-1200.0,0.00023702,2]
[424238225,1780680646000,-628.0,0.00024242,6]
[424238173,1780680646000,-200.0,0.00023697,2]
[424238228,1780680646000,-1850.0,0.00024285,2]
[424238262,1780680646000,-151.0,0.00024658,2]
[424238263,1780680646000,-151.0,0.00024658,2]
[424238265,1780680646000,-5206.773793,0.00024658,2]
[424238261,1780680646000,-151.0,0.00024658,2]
[424238268,1780680646000,-150.0,0.00024658,2]
[424238271,1780680646000,-1548.0,0.00024806,2]
[424238273,1780680646000,-1548.0,0.00024806,2]
[424238269,1780680646000,-300.0,0.00024658,14]
[424238277,1780680646000,-1548.0,0.00024806,2]
[424238276,1780680646000,-1548.0,0.00024806,2]
[424238270,1780680646000,-1224.41,0.000247,7]
[424238272,1780680646000,-1548.0,0.00024806,2]
[424238274,1780680646000,-1548.0,0.00024806,2]
[424238259,1780680646000,-1087.57,0.00024658,2]
[424238275,1780680646000,-1548.0,0.00024806,2]
[424238280,1780680646000,-1548.0,0.00024806,2]
[424238282,1780680646000,-1548.0,0.00024806,2]
[424238290,1780680646000,-699.29830665,0.00024904,2]
[424238289,1780680646000,-150.0,0.0002485,2]
[424238283,1780680646000,-163.9986118,0.00024806,2]
[424238288,1780680646000,-628.0,0.00024848,6]
[424238281,1780680646000,-1548.0,0.00024806,2]
[424238286,1780680646000,-153.78606725,0.00024806,2]
[424238285,1780680646000,-152.0,0.00024806,2]
[424238291,1780680646000,-186.18115721,0.00024904,2]
[424238284,1780680646000,-1548.0,0.00024806,2]
[424238287,1780680646000,-415.17301575,0.00024835,2]
[424238229,1780680646000,-1850.0,0.00024285,2]
[424238278,1780680646000,-1548.0,0.00024806,2]
[424238264,1780680646000,-5206.773793,0.00024658,2]
[424238279,1780680646000,-1548.0,0.00024806,2]
[424238258,1780680646000,-1000.0,0.00024658,2]
[424238230,1780680646000,-1850.0,0.00024285,2]
[424238240,1780680646000,-151.0,0.00024324,2]
[424238238,1780680646000,-151.0,0.00024324,2]
[424238241,1780680646000,-151.0,0.00024324,2]
[424238260,1780680646000,-151.0,0.00024658,2]
[424238234,1780680646000,-1850.0,0.00024285,2]
[424238233,1780680646000,-1850.0,0.00024285,2]
[424238236,1780680646000,-1848.0,0.00024285,2]
[424238237,1780680646000,-4636.4,0.00024324,2]
[424238235,1780680646000,-1850.0,0.00024285,2]
[424238243,1780680646000,-150.0,0.0002455,2]
[424238253,1780680646000,-500.0,0.0002465,30]
[424238242,1780680646000,-16998.06,0.00024434,7]
[424238254,1780680646000,-500.0,0.0002465,30]
[424238232,1780680646000,-1850.0,0.00024285,2]
[424238247,1780680646000,-200.0,0.00024581,2]
[424238244,1780680646000,-200.0,0.0002455,2]
[424238257,1780680646000,-308.43,0.00024658,2]
[424238255,1780680646000,-6010.95,0.00024658,2]
[424238266,1780680646000,-5206.773793,0.00024658,2]
[424238256,1780680646000,-6010.95,0.00024658,2]
[424238249,1780680646000,-828.0,0.00024592,2]
[424238267,1780680646000,-5206.773793,0.00024658,2]
[424238250,1780680646000,-172.22658536,0.0002465,2]
[424238246,1780680646000,-151.0,0.00024581,2]
[424238245,1780680646000,-200.0,0.0002455,2]
[424238248,1780680646000,-2884.75459676,0.00024581,2]
[424238252,1780680646000,-500.0,0.0002465,30]
[424238251,1780680646000,-500.0,0.0002465,30]
[424238310,1780680647000,-1814.05518717,0.00025,2]
[424238304,1780680647000,-1146.89084215,0.00025,2]
[424238318,1780680647000,-628.5162284,0.00025,5]
[424238317,1780680647000,-170.05133611,0.00025,2]
[424238316,1780680647000,-2236.37109545,0.00025,2]
[424238307,1780680647000,-1132.11673633,0.00025,2]
[424238302,1780680647000,-615.0,0.00025,2]
[424238305,1780680647000,-2426.05141722,0.00025,2]
[424238303,1780680647000,-3473.0,0.00025,2]
[424238295,1780680647000,-665.0,0.00024924,30]
[424238301,1780680647000,-867.38328777,0.00025,2]
[424238300,1780680647000,-1661.0,0.00025,2]
[424238294,1780680647000,-500.0,0.00024924,30]
[424238298,1780680647000,-418.0,0.00025,2]
[424238296,1780680647000,-152.0,0.00024989,3]
[424238297,1780680647000,-169.77702836,0.00024996,2]
[424238293,1780680647000,-500.0,0.00024924,30]
[424238292,1780680647000,-500.0,0.00024924,30]
[424238306,1780680647000,-602.8172967,0.00025,2]
[424238299,1780680647000,-252.0,0.00025,2]
[424238311,1780680647000,-2000.0,0.00025,2]
[424238320,1780680647000,-1809078.76971894,0.00025,2]
[424238313,1780680647000,-620.74641957,0.00025,2]
[424238332,1780680647000,-403.48194687,0.00023,2]
[424238308,1780680647000,-210.88009305,0.00025,2]
[424238333,1780680647000,-317.54866172,0.00023,2]
[424238331,1780680647000,-284.696,0.00023,2]
[424238330,1780680647000,-754.3,0.00025,2]
[424238326,1780680647000,-3325.0,0.00021,2]
[424238328,1780680647000,-567.657,0.00024376,30]
[424238329,1780680647000,-1117.16636901,0.00025,2]
[424238327,1780680647000,-3325.0,0.00022,2]
[424238325,1780680647000,-177.46271346,0.000109,2]
[424238334,1780680647000,-1698.0,0.00023,2]
[424238323,1780680647000,-3325.0,0.0002,2]
[424238324,1780680647000,-33376.30000696,0.00025,2]
[424238321,1780680647000,-3373.85369442,0.00025,2]
[424238319,1780680647000,-666.58968006,0.00025,2]
[424238315,1780680647000,-7245.15902368,0.00025,2]
[424238314,1780680647000,-3092.99737993,0.00025,2]
[424238312,1780680647000,-540.0,0.00025,2]
[424238309,1780680647000,-174.01953729,0.00025,60]
[424238322,1780680647000,-4449.03004094,0.00025,2]
[424238389,1780681832000,-500.0,0.00012545,2]
[424238387,1780681832000,-500.0,0.00012545,2]
[424238367,1780681832000,-500.0,0.00012545,2]
[424238384,1780681832000,-500.0,0.00012545,2]
[424238375,1780681832000,-500.0,0.00012545,2]
[424238369,1780681832000,-500.0,0.00012545,2]
[424238383,1780681832000,-500.0,0.00012545,2]
[424238385,1780681832000,-500.0,0.00012545,2]
[424238378,1780681832000,-500.0,0.00012545,2]
[424238382,1780681832000,-500.0,0.00012545,2]
[424238374,1780681832000,-500.0,0.00012545,2]
[424238376,1780681832000,-500.0,0.00012545,2]
[424238380,1780681832000,-500.0,0.00012545,2]
[424238386,1780681832000,-322.54335568,0.00012545,2]
[424238381,1780681832000,-500.0,0.00012545,2]
[424238379,1780681832000,-500.0,0.00012545,2]
[424238365,1780681832000,-261.18220978,0.00012545,2]
[424238377,1780681832000,-500.0,0.00012545,2]
[424238368,1780681832000,-500.0,0.00012545,2]
[424238362,1780681832000,-537.40861549,0.00012545,2]
[424238364,1780681832000,-158.26626476,0.00012545,2]
[424238397,1780681832000,-500.0,0.00012545,2]
[424238351,1780681832000,-416.60011189,0.00011128,2]
[424238356,1780681832000,-126.54684863,0.00011339,2]
[424238352,1780681832000,-215.77576141,0.00011157,2]
[424238358,1780681832000,-150.0,0.00011491,2]
[424238353,1780681832000,-160.0,0.00011157,2]
[424238355,1780681832000,-1073.45315137,0.00011339,2]
[424238357,1780681832000,-150.0,0.00011379,2]
[424238359,1780681832000,-728.602277,0.00012409,2]
[424238354,1780681832000,-150.0,0.00011268,2]
[424238360,1780681832000,-1680.0,0.00012472,2]
[424238370,1780681832000,-500.0,0.00012545,2]
[424238371,1780681832000,-500.0,0.00012545,2]
[424238372,1780681832000,-500.0,0.00012545,2]
[424238361,1780681832000,-500.0,0.00012545,2]
[424238373,1780681832000,-500.0,0.00012545,2]
[424238363,1780681832000,-500.0,0.00012545,2]
[424238366,1780681832000,-548.43188742,0.00012545,2]
[424238388,1780681832000,-500.0,0.00012545,2]
[424238426,1780681832000,-500.0,0.00013699,2]
[424238392,1780681832000,-500.0,0.00012545,2]
[424238415,1780681832000,-255.0,0.00013638,2]
[424238425,1780681832000,-500.0,0.00013699,2]
[424238417,1780681832000,-500.0,0.00013698,2]
[424238419,1780681832000,-166.66,0.00013699,2]
[424238416,1780681832000,-150.0,0.00013644,2]
[424238418,1780681832000,-559.32,0.00013698,2]
[424238424,1780681832000,-500.0,0.00013699,2]
[424238421,1780681832000,-500.0,0.00013699,2]
[424238422,1780681832000,-349.32161194,0.00013699,2]
[424238420,1780681832000,-500.0,0.00013699,2]
[424238423,1780681832000,-500.0,0.00013699,2]
[424238427,1780681832000,-500.0,0.00013699,2]
[424238429,1780681832000,-500.0,0.00013699,2]
[424238430,1780681832000,-500.0,0.00013699,2]
[424238431,1780681832000,-2042.56761808,0.0001372,2]
[424238428,1780681832000,-500.0,0.00013699,2]
[424238394,1780681832000,-550.0,0.00012545,2]
[424238409,1780681832000,-758.86,0.00013192,2]
[424238412,1780681832000,-157.08,0.00013265,2]
[424238414,1780681832000,-1457.4173284,0.00013309,2]
[424238411,1780681832000,-2000.0,0.00013247,2]
[424238390,1780681832000,-500.0,0.00012545,2]
[424238399,1780681832000,-500.0,0.00012545,2]
[424238391,1780681832000,-500.0,0.00012545,2]
[424238398,1780681832000,-500.0,0.00012545,2]
[424238395,1780681832000,-500.0,0.00012545,2]
[424238396,1780681832000,-500.0,0.00012545,2]
[424238405,1780681832000,-150.99,0.00012546,2]
[424238400,1780681832000,-500.0,0.00012545,2]
[424238403,1780681832000,-9999.99,0.00012546,2]
[424238393,1780681832000,-500.0,0.00012545,2]
[424238404,1780681832000,-208.6,0.00012546,2]
[424238406,1780681832000,-329.99632873,0.00012546,2]
[424238401,1780681832000,-150.0,0.00012546,2]
[424238407,1780681832000,-3345.38228504,0.00012547,2]
[424238413,1780681832000,-398.8726716,0.00013309,2]
[424238410,1780681832000,-1000.0,0.0001321,2]
[424238408,1780681832000,-1595.54,0.00012547,2]
[424238402,1780681832000,-9999.99,0.00012546,2]
[424238447,1780681838000,-47.58761808,0.00014247,2]
[424238441,1780681838000,-308.43238192,0.0001372,2]
[424238444,1780681838000,-166.66,0.00013973,2]
[424238442,1780681838000,-166.66,0.00013836,2]
[424238443,1780681838000,-166.66,0.00013887,2]
[424238445,1780681838000,-200.0,0.0001401,2]
[424238446,1780681838000,-166.66,0.0001411,2]
[424238452,1780681838000,-500.0,0.00014699,2]
[424238449,1780681838000,-166.66,0.00014345,2]
[424238450,1780681838000,-166.66,0.00014384,2]
[424238451,1780681838000,-500.0,0.00014699,2]
[424238453,1780681838000,-500.0,0.00014699,2]
[424238454,1780681838000,-500.0,0.00014699,2]
[424238455,1780681838000,-322.10078095,0.00014699,2]
[424238448,1780681838000,-119.07238192,0.00014247,2]
[424238505,1780681843000,-6817.3354,0.00014756,2]
[424238506,1780681843000,-3684.81601225,0.00014774,2]
[424238507,1780681843000,-319.14,0.000148,2]
[424238509,1780681843000,-319.14,0.000148,2]
[424238508,1780681843000,-319.14,0.000148,2]
[424238504,1780681843000,-255.31630008,0.00014699,2]
[424238512,1780681843000,-166.66,0.00014803,2]
[424238510,1780681843000,-319.14,0.000148,2]
[424238513,1780681843000,-3218.6373849,0.00014813,2]
[424238515,1780681843000,-544.50797856,0.00014813,2]
[424238514,1780681843000,-3616.56,0.00014813,2]
[424238517,1780681843000,-79.47733771,0.00014813,2]
[424238511,1780681843000,-319.16,0.000148,2]
[424238520,1780681846000,-1309.67150698,0.00014813,2]
[424238522,1780681846000,-433.0,0.00014829,2]
[424238524,1780681846000,-2000.0,0.00014847,3]
[424238521,1780681846000,-8350.38956575,0.00014813,2]
[424238525,1780681846000,-1686.73,0.00014847,3]
[424238523,1780681846000,-357.61043425,0.00014847,3]
[424238580,1780683032000,-449.0,0.00013002,2]
[424238585,1780683032000,-182.82754684,0.00013015,2]
[424238579,1780683032000,-500.0,0.00012964,2]
[424238578,1780683032000,-928.14,0.00012891,2]
[424238582,1780683032000,-500.0,0.00013015,2]
[424238586,1780683032000,-240.78838392,0.00013015,2]
[424238576,1780683032000,-408.26810965,0.00012808,2]
[424238574,1780683032000,-293.63,0.0001277,2]
[424238575,1780683032000,-2643.42,0.00012795,2]
[424238573,1780683032000,-472.95583212,0.00012695,2]
[424238581,1780683032000,-456.0,0.00013002,2]
[424238583,1780683032000,-311.03933712,0.00013015,2]
[424238589,1780683032000,-446.0,0.00013016,2]
[424238584,1780683032000,-500.0,0.00013015,2]
[424238596,1780683032000,-5714.18,0.00013045,2]
[424238594,1780683032000,-457.0,0.00013045,2]
[424238592,1780683032000,-353.69,0.00013016,2]
[424238591,1780683032000,-150.99,0.00013016,2]
[424238595,1780683032000,-1103.97,0.00013045,2]
[424238577,1780683032000,-150.0,0.00012822,2]
[424238590,1780683032000,-11257.7,0.00013016,2]
[424238593,1780683032000,-449.0,0.00013045,2]
[424238597,1780683032000,-443.0,0.00013068,2]
[424238587,1780683032000,-428.35819706,0.00013015,2]
[424238588,1780683032000,-446.0,0.00013016,2]
[424238617,1780683033000,-458.0,0.00013378,2]
[424238615,1780683033000,-445.0,0.00013378,2]
[424238624,1780683033000,-444.0,0.00013378,2]
[424238616,1780683033000,-452.0,0.00013378,2]
[424238613,1780683033000,-446.0,0.00013378,2]
[424238620,1780683033000,-453.0,0.00013378,2]
[424238623,1780683033000,-447.0,0.00013378,2]
[424238621,1780683033000,-448.0,0.00013378,2]
[424238618,1780683033000,-456.0,0.00013378,2]
[424238614,1780683033000,-453.0,0.00013378,2]
[424238619,1780683033000,-442.0,0.00013378,2]
[424238607,1780683033000,-452.0,0.00013262,2]
[424238605,1780683033000,-458.0,0.00013191,2]
[424238608,1780683033000,-453.0,0.00013262,2]
[424238606,1780683033000,-457.0,0.00013191,2]
[424238612,1780683033000,-458.0,0.00013378,2]
[424238609,1780683033000,-166.67,0.00013326,2]
[424238622,1780683033000,-446.0,0.00013378,2]
[424238601,1780683033000,-451.0,0.00013098,2]
[424238610,1780683033000,-457.0,0.00013378,2]
[424238604,1780683033000,-447.0,0.00013138,2]
[424238611,1780683033000,-454.0,0.00013378,2]
[424238599,1780683033000,-150.0,0.00013087,2]
[424238600,1780683033000,-2000.0,0.00013088,2]
[424238598,1780683033000,-451.0,0.00013068,2]
[424238602,1780683033000,-455.0,0.00013098,2]
[424238625,1780683033000,-450.0,0.00013378,2]
[424238603,1780683033000,-454.0,0.00013138,2]
[424238628,1780683033000,-454.0,0.00013378,2]
[424238627,1780683033000,-456.0,0.00013378,2]
[424238651,1780683033000,-995.20208545,0.00014107,2]
[424238653,1780683033000,-384.3352,0.00014107,2]
[424238652,1780683033000,-420.141,0.00014107,2]
[424238650,1780683033000,-153751.34199724,0.00014107,2]
[424238641,1780683033000,-300.0,0.00014047,2]
[424238644,1780683033000,-161.03491528,0.00014097,2]
[424238645,1780683033000,-1033.42824635,0.00014106,5]
[424238640,1780683033000,-300.0,0.00014047,2]
[424238643,1780683033000,-250.0,0.00014047,2]
[424238642,1780683033000,-300.0,0.00014047,2]
[424238639,1780683033000,-300.0,0.00014047,2]
[424238648,1780683033000,-98197.26098763,0.00014107,2]
[424238649,1780683033000,-140077.31335564,0.00014107,2]
[424238647,1780683033000,-200230.04461448,0.00014107,2]
[424238646,1780683033000,-1033.42824635,0.00014106,5]
[424238638,1780683033000,-300.0,0.00014047,2]
[424238635,1780683033000,-250.0,0.00014,2]
[424238634,1780683033000,-166.66,0.00013973,2]
[424238633,1780683033000,-166.66,0.00013836,2]
[424238631,1780683033000,-166.66,0.00013699,2]
[424238632,1780683033000,-200.0,0.00013699,2]
[424238637,1780683033000,-4273.38014335,0.0001401,2]
[424238636,1780683033000,-3268.08635755,0.0001401,2]
[424238630,1780683033000,-160.0,0.00013426,2]
[424238626,1780683033000,-455.0,0.00013378,2]
[424238629,1780683033000,-215.77576141,0.00013426,2]
[424238665,1780683042000,-382.41662952,0.00012806,2]
[424238663,1780683042000,-500.0,0.00012806,2]
[424238664,1780683042000,-108.11845993,0.00012806,2]
[424238737,1780683043000,-505.6153351,0.00014308,2]
[424238731,1780683043000,-500.0,0.00014307,2]
[424238732,1780683043000,-500.0,0.00014307,2]
[424238742,1780683043000,-1680.7800841,0.00014308,2]
[424238729,1780683043000,-500.0,0.00014307,2]